fUST/lending_fUST_20250126
["ID","MTS","AMOUNT","RATE_DAILY","PERIOD"]
[350411273,1737834637225,-500.0,0.00016849,2]
[350411274,1737834637234,-500.0,0.00016849,2]
[350411275,1737834637243,-500.0,0.00016849,2]
[350411276,1737834637253,-500.0,0.00016849,2]
[350411277,1737834637263,-500.0,0.00016849,2]
[350411278,1737834637273,-151.964067,0.00016849,2]
[350411279,1737834637283,-613.3,0.00016849,2]
[350411280,1737834637293,-500.0,0.00016849,2]
[350411281,1737834637302,-615.01,0.00016849,2]
[350411282,1737834637311,-5464.9,0.00016849,2]
[350411283,1737834637321,-500.0,0.00016849,2]
[350411284,1737834637330,-151.0,0.00016849,2]
[350411285,1737834637340,-559.93,0.00016849,2]
[350411286,1737834637352,-500.0,0.00016849,2]
[350411287,1737834637362,-500.0,0.00016849,2]
[350411288,1737834637372,-666.43,0.00016849,2]
[350411289,1737834637381,-2663.57,0.00016849,2]
[350411290,1737834637392,-151.0,0.00016849,2]
[350411292,1737834637402,-9993.69,0.00016849,2]
[350411293,1737834637412,-459.80446222,0.00016849,2]
[350411294,1737834637423,-500.0,0.00016849,2]
[350411295,1737834637432,-2690.29,0.00016849,2]
[350411296,1737834637442,-500.0,0.00016849,2]
[350411297,1737834637452,-500.0,0.00016849,2]
[350411298,1737834637461,-500.0,0.00016849,2]
[350411299,1737834637471,-1547.9,0.00016849,2]
[350411300,1737834637480,-151.0,0.00016849,2]
[350411301,1737834637490,-979.39,0.00016849,2]
[350411302,1737834637500,-1048.72,0.00016849,2]
[350411303,1737834637509,-632.52,0.00016849,2]
[350411304,1737834637519,-500.0,0.00016849,2]
[350411305,1737834637528,-500.0,0.00016849,2]
[350411306,1737834637538,-500.0,0.00016849,2]
[350411307,1737834637547,-3586.3,0.00016849,2]
[350411309,1737834637557,-500.0,0.00016849,2]
[350411311,1737834637566,-500.0,0.00016849,2]
[350411313,1737834637575,-14650.45,0.00016849,2]
[350411315,1737834637585,-1357.59,0.00016849,2]
[350411317,1737834637596,-653.79,0.00016849,2]
[350411319,1737834637606,-500.0,0.00016849,2]
[350411321,1737834637615,-655.55,0.00016849,2]
[350411323,1737834637624,-529.97,0.00016849,2]
[350411325,1737834637633,-616.81,0.00016849,2]
[350411327,1737834637642,-1250.96,0.00016849,2]
[350411329,1737834637652,-500.0,0.00016849,2]
[350411331,1737834637661,-1460.8,0.00016849,2]
[350411333,1737834637670,-949.4,0.00016849,2]
[350411335,1737834637680,-516.34,0.00016849,2]
[350411337,1737834637688,-151.0,0.00016849,2]
[350411339,1737834637698,-500.0,0.00016849,2]
[350411341,1737834637707,-639.64,0.00016849,2]
[350411343,1737834637716,-376.81773539,0.00016849,2]
[350411345,1737834637725,-500.0,0.00016849,2]
[350411347,1737834637735,-151.0,0.00016849,2]
[350411348,1737834637744,-500.0,0.00016849,2]
[350411349,1737834637753,-1337.14,0.00016849,2]
[350411350,1737834637763,-6012.30227187,0.00016882,2]
[350411351,1737834637772,-151.0,0.000169,2]
[350411352,1737834637781,-160.0,0.00016983,2]
[350411353,1737834637791,-161.7,0.00016983,2]
[350411354,1737834637800,-153.0,0.00016983,2]
[350411355,1737834637809,-153.0,0.00016983,2]
[350411356,1737834637819,-153.0,0.00016983,2]
[350411357,1737834637828,-153.0,0.00016983,2]
[350411358,1737834637837,-153.0,0.00016983,2]
[350411359,1737834637847,-153.0,0.00016983,2]
[350411360,1737834637857,-153.0,0.00016983,2]
[350411361,1737834637867,-153.0,0.00016983,2]
[350411362,1737834637877,-153.0,0.00016983,2]
[350411363,1737834637887,-153.0,0.00016983,2]
[350411365,1737834637896,-153.0,0.00016983,2]
[350411367,1737834637907,-153.0,0.00016983,2]
[350411369,1737834637917,-153.0,0.00016983,2]
[350411370,1737834637927,-153.0,0.00016983,2]
[350411372,1737834637936,-153.0,0.00016983,2]
[350411374,1737834637946,-153.0,0.00016983,2]
[350411376,1737834637956,-153.0,0.00016983,2]
[350411377,1737834637966,-226.98,0.00016983,2]
[350411378,1737834637977,-500.0,0.00016986,2]
[350411379,1737834637986,-605.33613582,0.00016986,2]
[350411380,1737834637996,-500.0,0.00016986,2]
[350411381,1737834638005,-500.0,0.00016986,2]
[350411382,1737834638015,-591.17,0.00016986,2]
[350411383,1737834638024,-500.0,0.00016986,2]
[350411385,1737834638034,-500.0,0.00016986,2]
[350411387,1737834638043,-500.0,0.00016986,2]
[350411389,1737834638053,-500.0,0.00016986,2]
[350411390,1737834638062,-500.0,0.00016986,2]
[350411391,1737834638071,-151.0,0.00016986,2]
[350411392,1737834638082,-500.0,0.00016986,2]
[350411393,1737834638091,-500.0,0.00016986,2]
[350411394,1737834638100,-500.0,0.00016986,2]
[350411395,1737834638109,-500.0,0.00016986,2]
[350411396,1737834638118,-500.0,0.00016986,2]
[350411397,1737834638128,-151.0,0.00016986,2]
[350411398,1737834638137,-500.0,0.00016986,2]
[350411399,1737834638146,-500.0,0.00016986,2]
[350411400,1737834638155,-500.0,0.00016986,2]
[350411401,1737834638165,-500.0,0.00016986,2]
[350411402,1737834638175,-500.0,0.00016986,2]
[350411403,1737834638185,-500.0,0.00016986,2]
[350411404,1737834638195,-613.3,0.00016986,2]
[350411405,1737834638204,-500.0,0.00016986,2]
[350411406,1737834638214,-615.01,0.00016986,2]
[350411407,1737834638223,-5464.9,0.00016986,2]
[350411408,1737834638233,-500.0,0.00016986,2]
[350411409,1737834638242,-151.0,0.00016986,2]
[350411410,1737834638251,-559.93,0.00016986,2]
[350411411,1737834638261,-500.0,0.00016986,2]
[350411412,1737834638271,-500.0,0.00016986,2]
[350411413,1737834638280,-666.43,0.00016986,2]
[350411414,1737834638289,-2663.57,0.00016986,2]
[350411415,1737834638298,-151.0,0.00016986,2]
[350411416,1737834638308,-9993.69,0.00016986,2]
[350411417,1737834638318,-543.28,0.00016986,2]
[350411418,1737834638327,-2690.29,0.00016986,2]
[350411419,1737834638337,-500.0,0.00016986,2]
[350411420,1737834638350,-500.0,0.00016986,2]
[350411421,1737834638359,-211.15,0.00016986,2]
[350411422,1737834638369,-1547.9,0.00016986,2]
[350411423,1737834638378,-979.39,0.00016986,2]
[350411424,1737834638389,-1048.72,0.00016986,2]
[350411425,1737834638398,-632.52,0.00016986,2]
[350411426,1737834638408,-500.0,0.00016986,2]
[350411427,1737834638417,-500.0,0.00016986,2]
[350411428,1737834638428,-500.0,0.00016986,2]
[350411429,1737834638439,-3586.3,0.00016986,2]
[350411430,1737834638453,-500.0,0.00016986,2]
[350411431,1737834638462,-500.0,0.00016986,2]
[350411432,1737834638471,-14650.45,0.00016986,2]
[350411433,1737834638480,-1357.59,0.00016986,2]
[350411434,1737834638490,-653.79,0.00016986,2]
[350411435,1737834638501,-500.0,0.00016986,2]
[350411436,1737834638511,-655.55,0.00016986,2]
[350411437,1737834638521,-529.97,0.00016986,2]
[350411438,1737834638532,-616.81,0.00016986,2]
[350411439,1737834638543,-1250.96,0.00016986,2]
[350411440,1737834638553,-500.0,0.00016986,2]
[350411441,1737834638563,-1460.8,0.00016986,2]
[350411442,1737834638572,-949.4,0.00016986,2]
[350411443,1737834638581,-516.34,0.00016986,2]
[350411444,1737834638591,-500.0,0.00016986,2]
[350411445,1737834638600,-639.64,0.00016986,2]
[350411446,1737834638610,-500.0,0.00016986,2]
[350411447,1737834638619,-151.0,0.00016986,2]
[350411448,1737834638629,-500.0,0.00016986,2]
[350411449,1737834638639,-1337.14,0.00016986,2]
[350411450,1737834638648,-151.0,0.00017,2]
[350411451,1737834638658,-3000.0,0.00017023,2]
[350411452,1737834638668,-150.0,0.00017051,2]
[350411453,1737834638678,-500.0,0.00017087,2]
[350411454,1737834638687,-500.0,0.00017105,2]
[350411455,1737834638696,-500.0,0.00017123,2]
[350411456,1737834638706,-500.0,0.00017123,2]
[350411457,1737834638715,-500.0,0.00017123,2]
[350411458,1737834638724,-591.17,0.00017123,2]
[350411459,1737834638734,-500.0,0.00017123,2]
[350411460,1737834638743,-500.0,0.00017123,2]
[350411461,1737834638753,-500.0,0.00017123,2]
[350411462,1737834638762,-500.0,0.00017123,2]
[350411463,1737834638771,-500.0,0.00017123,2]
[350411464,1737834638781,-500.0,0.00017123,2]
[350411465,1737834638790,-500.0,0.00017123,2]
[350411466,1737834638799,-500.0,0.00017123,2]
[350411467,1737834638808,-500.0,0.00017123,2]
[350411468,1737834638818,-500.0,0.00017123,2]
[350411469,1737834638827,-500.0,0.00017123,2]
[350411470,1737834638836,-500.0,0.00017123,2]
[350411471,1737834638845,-500.0,0.00017123,2]
[350411472,1737834638854,-500.0,0.00017123,2]
[350411473,1737834638863,-500.0,0.00017123,2]
[350411474,1737834638873,-500.0,0.00017123,2]
[350411475,1737834638883,-613.3,0.00017123,2]
[350411476,1737834638892,-500.0,0.00017123,2]
[350411477,1737834638901,-615.01,0.00017123,2]
[350411478,1737834638911,-5464.9,0.00017123,2]
[350411479,1737834638921,-579.45,0.00017123,2]
[350411480,1737834638930,-164.768868,0.00017123,2]
[350411481,1737834638939,-559.93,0.00017123,2]
[350411482,1737834638949,-500.0,0.00017123,2]
[350411483,1737834638958,-500.0,0.00017123,2]
[350411484,1737834638968,-666.43,0.00017123,2]
[350411485,1737834638977,-2663.57,0.00017123,2]
[350411486,1737834638987,-9993.69,0.00017123,2]
[350411487,1737834638996,-2690.29,0.00017123,2]
[350411488,1737834639005,-500.0,0.00017123,2]
[350411489,1737834639015,-500.0,0.00017123,2]
[350411490,1737834639024,-1547.9,0.00017123,2]
[350411491,1737834639033,-979.39,0.00017123,2]
[350411492,1737834639046,-1048.72,0.00017123,2]
[350411493,1737834639056,-632.52,0.00017123,2]
[350411494,1737834639065,-500.0,0.00017123,2]
[350411495,1737834639075,-500.0,0.00017123,2]
[350411496,1737834639084,-500.0,0.00017123,2]
[350411497,1737834639093,-3586.3,0.00017123,2]
[350411498,1737834639103,-500.0,0.00017123,2]
[350411499,1737834639112,-14650.45,0.00017123,2]
[350411500,1737834639121,-1357.59,0.00017123,2]
[350411501,1737834639133,-653.79,0.00017123,2]
[350411502,1737834639171,-500.0,0.00017123,2]
[350411503,1737834639180,-655.55,0.00017123,2]
[350411504,1737834639191,-529.97,0.00017123,2]
[350411505,1737834639201,-616.81,0.00017123,2]
[350411506,1737834639210,-1250.96,0.00017123,2]
[350411507,1737834639220,-500.0,0.00017123,2]
[350411508,1737834639230,-1460.8,0.00017123,2]
[350411509,1737834639240,-949.4,0.00017123,2]
[350411510,1737834639249,-516.34,0.00017123,2]
[350411511,1737834639259,-599.10261418,0.00017123,2]
[350411512,1737834639268,-639.64,0.00017123,2]
[350411513,1737834639279,-500.0,0.00017123,2]
[350411514,1737834639290,-500.0,0.00017123,2]
[350411515,1737834639300,-1337.14,0.00017123,2]
[350411516,1737834639310,-13239.98568306,0.00017187,2]
[350411517,1737834639320,-151.0,0.000172,2]
[350411518,1737834639329,-300.21185406,0.00017259,2]
[350411520,1737834639340,-500.0,0.0001726,2]
[350411521,1737834639353,-500.0,0.0001726,2]
[350411522,1737834639362,-500.0,0.0001726,2]
[350411523,1737834639372,-591.17,0.0001726,2]
[350411524,1737834639381,-500.0,0.0001726,2]
[350411525,1737834639393,-500.0,0.0001726,2]
[350411526,1737834639403,-500.0,0.0001726,2]
[350411527,1737834639412,-500.0,0.0001726,2]
[350411528,1737834639424,-500.0,0.0001726,2]
[350411529,1737834639434,-500.0,0.0001726,2]
[350411531,1737834639444,-500.0,0.0001726,2]
[350411532,1737834639454,-500.0,0.0001726,2]
[350411533,1737834639463,-411.6497339,0.0001726,2]
[350411534,1737834639472,-500.0,0.0001726,2]
[350411535,1737834639482,-500.0,0.0001726,2]
[350411536,1737834639491,-500.0,0.0001726,2]
[350411537,1737834639500,-500.0,0.0001726,2]
[350411538,1737834639509,-500.0,0.0001726,2]
[350411539,1737834639520,-500.0,0.0001726,2]
[350411540,1737834639529,-613.3,0.0001726,2]
[350411541,1737834639538,-500.0,0.0001726,2]
[350411542,1737834639548,-615.01,0.0001726,2]
[350411544,1737834639557,-5464.9,0.0001726,2]
[350411545,1737834639566,-559.93,0.0001726,2]
[350411546,1737834639576,-500.0,0.0001726,2]
[350411547,1737834639585,-500.0,0.0001726,2]
[350411548,1737834639595,-666.43,0.0001726,2]
[350411549,1737834639604,-2663.57,0.0001726,2]
[350411550,1737834639613,-9993.69,0.0001726,2]
[350411551,1737834639623,-2690.29,0.0001726,2]
[350411552,1737834639632,-500.0,0.0001726,2]
[350411553,1737834639643,-286.6786863,0.0001726,2]
[350411555,1737834639653,-1547.9,0.0001726,2]
[350411556,1737834639664,-979.39,0.0001726,2]
[350411557,1737834639676,-1048.72,0.0001726,2]
[350411558,1737834639689,-632.52,0.0001726,2]
[350411559,1737834639698,-500.0,0.0001726,2]
[350411560,1737834639707,-500.0,0.0001726,2]
[350411561,1737834639717,-500.0,0.0001726,2]
[350411562,1737834639726,-3586.3,0.0001726,2]
[350411563,1737834639735,-567.68,0.0001726,2]
[350411564,1737834639745,-14650.45,0.0001726,2]
[350411565,1737834639755,-1357.59,0.0001726,2]
[350411567,1737834639764,-653.79,0.0001726,2]
[350411568,1737834639773,-500.0,0.0001726,2]
[350411569,1737834639783,-655.55,0.0001726,2]
[350411571,1737834639793,-529.97,0.0001726,2]
[350411572,1737834639802,-616.81,0.0001726,2]
[350411573,1737834639811,-1250.96,0.0001726,2]
[350411574,1737834639821,-500.0,0.0001726,2]
[350411575,1737834639830,-1460.8,0.0001726,2]
[350411576,1737834639839,-949.4,0.0001726,2]
[350411577,1737834639849,-516.34,0.0001726,2]
[350411578,1737834639859,-639.64,0.0001726,2]
[350411579,1737834639868,-500.0,0.0001726,2]
[350411580,1737834639878,-500.0,0.0001726,2]
[350411581,1737834639887,-1337.14,0.0001726,2]
[350411582,1737834639897,-1221.23333942,0.00017294,2]
[350411583,1737834639907,-151.0,0.000173,2]
[350411584,1737834639917,-825.088,0.00017349,2]
[350411585,1737834639927,-580.42226172,0.00017397,2]
[350411586,1737834639937,-448.79128508,0.00017397,2]
[350411587,1737834639947,-500.0,0.00017397,2]
[350411588,1737834639957,-591.17,0.00017397,2]
[350411589,1737834639967,-500.0,0.00017397,2]
[350411591,1737834639976,-500.0,0.00017397,2]
[350411592,1737834639986,-500.0,0.00017397,2]
[350411593,1737834639996,-500.0,0.00017397,2]
[350411594,1737834640007,-500.0,0.00017397,2]
[350411595,1737834640016,-500.0,0.00017397,2]
[350411597,1737834640026,-500.0,0.00017397,2]
[350411599,1737834640035,-500.0,0.00017397,2]
[350411600,1737834640045,-500.0,0.00017397,2]
[350411601,1737834640054,-389.75260168,0.00017397,2]
[350411602,1737834640063,-500.0,0.00017397,2]
[350411603,1737834640073,-500.0,0.00017397,2]
[350411605,1737834640082,-500.0,0.00017397,2]
[350411606,1737834640092,-613.3,0.00017397,2]
[350411607,1737834640101,-542.09550463,0.00017397,2]
[350411608,1737834640111,-615.01,0.00017397,2]
[350411609,1737834640120,-5464.9,0.00017397,2]
[350411610,1737834640130,-559.93,0.00017397,2]
[350411611,1737834640140,-500.0,0.00017397,2]
[350411612,1737834640150,-500.0,0.00017397,2]
[350411613,1737834640159,-666.43,0.00017397,2]
[350411614,1737834640169,-2663.57,0.00017397,2]
[350411615,1737834640178,-9993.69,0.00017397,2]
[350411616,1737834640188,-2690.29,0.00017397,2]
[350411617,1737834640198,-500.0,0.00017397,2]
[350411618,1737834640207,-1547.9,0.00017397,2]
[350411619,1737834640216,-979.39,0.00017397,2]
[350411620,1737834640226,-1048.72,0.00017397,2]
[350411621,1737834640235,-632.52,0.00017397,2]
[350411622,1737834640245,-500.0,0.00017397,2]
[350411623,1737834640254,-500.0,0.00017397,2]
[350411624,1737834640264,-500.0,0.00017397,2]
[350411625,1737834640273,-3586.3,0.00017397,2]
[350411626,1737834640283,-1042.23749191,0.00017397,2]
[350411627,1737834640397,-13608.21250809,0.00017397,2]
[350411628,1737834640408,-1357.59,0.00017397,2]
[350411629,1737834640418,-653.79,0.00017397,2]
[350411630,1737834640428,-500.0,0.00017397,2]
[350411631,1737834640438,-655.55,0.00017397,2]
[350411632,1737834640448,-529.97,0.00017397,2]
[350411633,1737834640458,-616.81,0.00017397,2]
[350411634,1737834640467,-1250.96,0.00017397,2]
[350411635,1737834640477,-500.0,0.00017397,2]
[350411636,1737834640487,-1460.8,0.00017397,2]
[350411637,1737834640496,-949.4,0.00017397,2]
[350411638,1737834640506,-516.34,0.00017397,2]
[350411639,1737834640517,-639.64,0.00017397,2]
[350411640,1737834640526,-500.0,0.00017397,2]
[350411641,1737834640536,-590.152033,0.00017397,2]
[350411642,1737834640546,-1337.14,0.00017397,2]
[350411643,1737834640556,-416.3566883,0.00017397,2]
[350411644,1737834640565,-354.0685108,0.00017397,2]
[350411645,1737834640575,-354.0685108,0.00017397,2]
[350411646,1737834640585,-151.0,0.000174,2]
[350411647,1737834640594,-151.0,0.000175,2]
[350411648,1737834640604,-150.0,0.000175,2]
[350411649,1737834640614,-500.0,0.00017534,2]
[350411650,1737834640623,-591.17,0.00017534,2]
[350411651,1737834640635,-500.0,0.00017534,2]
[350411652,1737834640646,-455.57867745,0.00017534,2]
[350411653,1737834640657,-500.0,0.00017534,2]
[350411654,1737834640667,-500.0,0.00017534,2]
[350411655,1737834640677,-500.0,0.00017534,2]
[350411656,1737834640686,-500.0,0.00017534,2]
[350411657,1737834640697,-210.6,0.00017534,2]
[350411658,1737834640707,-500.0,0.00017534,2]
[350411659,1737834640717,-500.0,0.00017534,2]
[350411660,1737834640727,-193.75,0.00017534,2]
[350411661,1737834640739,-613.3,0.00017534,2]
[350411662,1737834640749,-615.01,0.00017534,2]
[350411663,1737834640760,-5464.9,0.00017534,2]
[350411664,1737834640770,-559.93,0.00017534,2]
[350411665,1737834640780,-500.0,0.00017534,2]
[350411666,1737834640790,-357.01940731,0.00017534,2]
[350411667,1737834640799,-666.43,0.00017534,2]
[350411668,1737834640808,-2663.57,0.00017534,2]
[350411669,1737834640818,-9993.69,0.00017534,2]
[350411670,1737834640828,-2690.29,0.00017534,2]
[350411671,1737834640838,-500.0,0.00017534,2]
[350411672,1737834640849,-1547.9,0.00017534,2]
[350411673,1737834640858,-979.39,0.00017534,2]
[350411674,1737834640868,-1048.72,0.00017534,2]
[350411675,1737834640878,-632.52,0.00017534,2]
[350411676,1737834640887,-500.0,0.00017534,2]
[350411677,1737834640897,-500.0,0.00017534,2]
[350411678,1737834640907,-500.0,0.00017534,2]
[350411679,1737834640917,-3586.3,0.00017534,2]
[350411680,1737834640928,-14650.45,0.00017534,2]
[350411681,1737834640938,-1357.59,0.00017534,2]
[350411682,1737834640948,-653.79,0.00017534,2]
[350411683,1737834640958,-500.0,0.00017534,2]
[350411684,1737834640968,-655.55,0.00017534,2]
[350411685,1737834640978,-529.97,0.00017534,2]
[350411686,1737834640987,-616.81,0.00017534,2]
[350411687,1737834640997,-1250.96,0.00017534,2]
[350411688,1737834641008,-500.0,0.00017534,2]
[350411689,1737834641018,-1460.8,0.00017534,2]
[350411690,1737834641027,-949.4,0.00017534,2]
[350411691,1737834641037,-516.34,0.00017534,2]
[350411692,1737834641046,-639.64,0.00017534,2]
[350411693,1737834641056,-500.0,0.00017534,2]
[350411694,1737834641066,-1337.14,0.00017534,2]
[350411695,1737834641075,-7747.37227946,0.000176,2]
[350411696,1737834641251,-395.0,0.00017051,2]
[350411697,1737834641262,-1447.87520945,0.000176,2]
[350411698,1737834641271,-6401.82479055,0.000176,2]
[350411699,1737834641283,-2793.42269811,0.000176,2]
[350411700,1737834641292,-9195.24748866,0.000176,2]
[350411701,1737834641302,-1436.6851278,0.000176,2]
[350411702,1737834641314,-7909.8248722,0.000176,2]
[350411703,1737834641323,-151.0,0.000176,2]
[350411704,1737834641333,-9195.24748866,0.00017624,2]
[350411705,1737834641343,-1000.0,0.00017635,2]
[350411706,1737834641355,-1000.0,0.00017653,2]
[350411707,1737834641365,-258.48118851,0.0001767,5]
[350411708,1737834641375,-2090.94866086,0.0001767,5]
[350411709,1737834641432,-500.0,0.00016438,2]
[350411711,1737834641442,-397.0008887,0.00016438,2]
[350411712,1737834641454,-3954.08284274,0.0001767,5]
[350411713,1737834641502,-46489.64650421,0.0001767,5]
[350411714,1737834641513,-552.36613795,0.00017671,2]
[350411715,1737834641524,-591.17,0.00017671,2]
[350411716,1737834641536,-500.0,0.00017671,2]
[350411717,1737834641546,-500.0,0.00017671,2]
[350411718,1737834641557,-500.0,0.00017671,2]
[350411719,1737834641568,-500.0,0.00017671,2]
[350411720,1737834641578,-500.0,0.00017671,2]
[350411721,1737834641588,-615.01,0.00017671,2]
[350411722,1737834641599,-5464.9,0.00017671,2]
[350411723,1737834641609,-559.93,0.00017671,2]
[350411724,1737834641618,-500.0,0.00017671,2]
[350411725,1737834641628,-666.43,0.00017671,2]
[350411726,1737834641638,-2608.51714595,0.00017671,2]
[350411727,1737834641650,-55.05285405,0.00017671,2]
[350411728,1737834641661,-9993.69,0.00017671,2]
[350411729,1737834641672,-2690.29,0.00017671,2]
[350411730,1737834641682,-500.0,0.00017671,2]
[350411731,1737834641692,-1547.9,0.00017671,2]
[350411732,1737834641702,-207.66256702,0.00017671,2]
[350411733,1737834641754,-771.72743298,0.00017671,2]
[350411734,1737834641764,-1048.72,0.00017671,2]
[350411735,1737834641774,-632.52,0.00017671,2]
[350411736,1737834641784,-500.0,0.00017671,2]
[350411737,1737834641794,-500.0,0.00017671,2]
[350411738,1737834641805,-500.0,0.00017671,2]
[350411739,1737834641816,-3586.3,0.00017671,2]
[350411740,1737834641827,-11988.16983537,0.00017671,2]
[350411773,1737834644755,-503.73265557,0.00016438,2]
[350411774,1737834644765,-439.48258863,0.00016438,2]
[350411775,1737834644777,-60.51741137,0.00016438,2]
[350411776,1737834644787,-500.0,0.00016438,2]
[350411777,1737834644796,-500.0,0.00016575,2]
[350411778,1737834644806,-500.0,0.00016712,2]
[350411779,1737834644816,-500.0,0.00016849,2]
[350411780,1737834644826,-500.0,0.00016986,2]
[350411781,1737834644836,-500.0,0.00017123,2]
[350411782,1737834644846,-500.0,0.0001726,2]
[350411783,1737834644856,-500.0,0.00017397,2]
[350411784,1737834644865,-500.0,0.00017534,2]
[350411785,1737834644876,-2662.28016463,0.00017671,2]
[350411786,1737834644886,-1357.59,0.00017671,2]
[350411787,1737834644895,-616.32176895,0.00017671,2]
[350411788,1737834644907,-37.46823105,0.00017671,2]
[350411789,1737834644917,-500.0,0.00017671,2]
[350411790,1737834644927,-433.31137438,0.00017671,2]
[350411791,1737834644939,-222.23862562,0.00017671,2]
[350411792,1737834644948,-377.38557676,0.00017671,2]
[350411793,1737834644960,-152.58442324,0.00017671,2]
[350411794,1737834644970,-616.81,0.00017671,2]
[350411795,1737834644979,-1168.93482086,0.00017671,2]
[350411796,1737834644992,-82.02517914,0.00017671,2]
[350411797,1737834645002,-500.0,0.00017671,2]
[350411798,1737834645012,-1460.8,0.00017671,2]
[350411799,1737834645022,-25.84138143,0.00017671,2]
[350411833,1737834763329,1000.0,0.00024,120]
[350411834,1737834774475,10000.0,0.00022,30]
[350411835,1737834787517,400.0,0.00013973,2]
[350411836,1737834792199,3000.0,0.00022,30]
[350411837,1737834801435,340.0,0.00022,30]
[350411838,1737835522431,325.85838801,0.00014931,2]
[350411839,1737835666340,400.0,0.00013973,2]
[350411871,1737835832257,-1069.0753712,0.00015388,2]
[350411873,1737835832266,-300.0,0.00015574,2]
[350411874,1737835832275,-1230.9246288,0.00015575,2]
[350411877,1737835832287,-1075.29302254,0.00015575,2]
[350411881,1737835832315,-22593.78234866,0.00015575,2]
[350411883,1737835832324,-2667.070466,0.00015605,2]
[350411885,1737835832334,-644.06143211,0.00016338,2]
[350411887,1737835832343,-223.52724424,0.00016437,2]
[350411889,1737835832352,-127.44192271,0.00016437,2]
[350411891,1737835832364,-207.96010937,0.00016437,2]
[350411893,1737835832373,-309.65957058,0.00016437,2]
[350411895,1737835832383,-500.0,0.00016437,2]
[350411897,1737835832392,-292.36575598,0.00016437,2]
[350411899,1737835832401,-383.30629666,0.00016437,2]
[350411901,1737835832411,-500.0,0.00016437,2]
[350411904,1737835832427,-500.0,0.00016437,2]
[350411906,1737835832441,-395.06666075,0.00016437,2]
[350411909,1737835832451,-500.0,0.00016437,2]
[350411912,1737835832461,-500.0,0.00016437,2]
[350411916,1737835832471,-195.10389712,0.00016437,2]
[350411919,1737835832492,-100.30452312,0.00016437,2]
[350411921,1737835832502,-500.0,0.00016437,2]
[350411923,1737835832514,-500.0,0.00016438,2]
[350411925,1737835832524,-422.91801308,0.00016438,2]
[350411927,1737835832534,-500.0,0.00016438,2]
[350411929,1737835832545,-500.0,0.00016438,2]
[350411931,1737835832556,-500.0,0.00016438,2]
[350411934,1737835832565,-500.0,0.00016438,2]
[350411935,1737835832575,-500.0,0.00016438,2]
[350411938,1737835832585,-500.0,0.00016438,2]
[350411940,1737835832595,-266.40006304,0.00016438,2]
[350411942,1737835832605,-535.08743479,0.00016438,2]
[350411944,1737835832615,-500.0,0.00016438,2]
[350411946,1737835832626,-501.41594376,0.00016438,2]
[350411948,1737835832636,-617.99320134,0.00016438,2]
[350411950,1737835832645,-500.0,0.00016438,2]
[350411952,1737835832655,-500.0,0.00016438,2]
[350411954,1737835832665,-500.0,0.00016438,2]
[350411956,1737835832675,-504.27072696,0.00016438,2]